fUSD/lending_fUSD_20260323
["ID","MTS","AMOUNT","RATE_DAILY","PERIOD"]
[408791539,1774277439377,-1006.20353177,0.000159,2]
[408791540,1774277439394,-1006.20353177,0.000159,2]
[408791541,1774277439405,-1006.20353177,0.000159,2]
[408791542,1774277439417,-1006.20353177,0.000159,2]
[408791543,1774277439428,-596.06367838,0.000159,2]
[408791544,1774277439439,-438.3687034,0.000159,2]
[408791545,1774277439450,-193.50293385,0.000159,2]
[408791546,1774277439462,-6270.65726468,0.000159,2]
[408791547,1774277439473,-337.92936738,0.000159,2]
[408791548,1774277439484,-167.38131735,0.000159,2]
[408791549,1774277439497,-823.0,0.00015961,2]
[408791550,1774277439511,-1842.0,0.00015973,3]
[408791551,1774277439523,-22211.15387001,0.00015973,3]
[408791552,1774277439534,-320.13646621,0.00015973,3]
[408791553,1774277439547,-5000.0,0.00015984,2]
[408791554,1774277439558,-1000.0,0.00015987,2]
[408791555,1774277439569,-1000.0,0.00015987,2]
[408791556,1774277439579,-823.896,0.00015987,2]
[408791557,1774277439592,-3200.4979858,0.00015989,2]
[408791558,1774277439603,-916.9586024,0.00015989,2]
[408791559,1774277439613,-1239.92084832,0.00015999,5]
[408791560,1774277439624,-1239.92084832,0.00015999,5]
[408791562,1774277439636,-1239.92084831,0.00015999,5]
[408791563,1774277439647,-500.0,0.00015999,2]
[408791564,1774277439658,-500.0,0.00015999,2]
[408791565,1774277439669,-500.0,0.00015999,2]
[408791566,1774277439681,-500.0,0.00015999,2]
[408791567,1774277439692,-500.0,0.00015999,2]
[408791568,1774277439704,-500.0,0.00015999,2]
[408791569,1774277439715,-500.0,0.00015999,2]
[408791570,1774277439727,-500.0,0.00015999,2]
[408791571,1774277439743,-500.0,0.00015999,2]
[408791572,1774277439755,-500.0,0.00015999,2]
[408791573,1774277439767,-500.0,0.00015999,2]
[408791574,1774277439778,-500.0,0.00015999,2]
[408791575,1774277439791,-500.0,0.00015999,2]
[408791576,1774277439802,-500.0,0.00015999,2]
[408791577,1774277439814,-500.0,0.00015999,2]
[408791578,1774277439825,-500.0,0.00015999,2]
[408791579,1774277439836,-434.92504805,0.00015999,2]
[408791580,1774277439847,-672.0,0.00016,5]
[408791582,1774277439859,-302.0,0.00016,2]
[408791583,1774277439870,-442182.19713496,0.00016,2]
[408791584,1774277439888,-369.52671875,0.00016,2]
[408791585,1774277439902,-469.73578931,0.00016,2]
[408791586,1774277439916,-720.01455073,0.00016,2]
[408791587,1774277439934,-18505.54163152,0.00016,2]
[408791588,1774277439948,-11737.65924844,0.00016,2]
[408791589,1774277439962,-2190.42,0.00016,2]
[408791590,1774277439976,-1051.74850456,0.00016,2]
[408791591,1774277439990,-275647.42487013,0.00016,2]
[408791592,1774277440266,-963.42602351,0.00016,2]
[408791593,1774277440293,-149.81231093,0.00016,2]
[408791594,1774277440325,-1211.0,0.00016,2]
[408791595,1774277440339,-13390.316375,0.00016,2]
[408791596,1774277440387,-3962.25277453,0.00016,2]
[408791598,1774277440400,-412.0,0.00016,2]
[408791603,1774277444661,-658.66149416,0.00016,2]
[408791604,1774277444723,-5533.68529503,0.00016,2]
[408791605,1774277444736,-916.03,0.00016,2]
[408791781,1774277448343,-1033581.9561135,0.00016,2]
[408791782,1774277448353,-559822.02432376,0.00016,2]
[408791784,1774277448362,-582329.30460388,0.00016,2]
[408791786,1774277448371,-315636.50726007,0.00016,2]
[408791788,1774277448381,-282881.76522714,0.00016,2]
[408791790,1774277448391,-627800.00449353,0.00016,2]
[408791792,1774277448401,-500.0,0.00016,2]
[408791794,1774277448410,-500.0,0.00016,2]
[408791838,1774277448840,-500.0,0.00016,2]
[408791840,1774277448858,-500.0,0.00016,2]
[408791842,1774277448868,-500.0,0.00016,2]
[408791844,1774277448878,-500.0,0.00016,2]
[408791846,1774277448887,-500.0,0.00016,2]
[408791848,1774277448897,-346.67808938,0.00016,2]
[408791850,1774277448907,-1040940.84198815,0.00016,2]
[408791852,1774277448916,-466.13,0.00016,2]
[408791854,1774277448927,-500.62,0.00016,2]
[408791856,1774277448936,-500.0,0.00016,2]
[408791858,1774277448946,-150.0,0.00016,2]
[408791860,1774277448956,-1346.70830358,0.00016,2]
[408791862,1774277448966,-150.0,0.00016,2]
[408791864,1774277448976,-7789.42708899,0.00016,2]
[408791866,1774277448986,-150.0,0.00016,2]
[408791868,1774277448996,-1623.11047724,0.00016,2]
[408791870,1774277449007,-857827.1250159,0.00016,2]
[408791872,1774277449017,-524.69,0.00016,2]
[408791874,1774277449027,-560.21,0.00016,2]
[408791876,1774277449038,-712.55,0.00016,2]
[408791878,1774277449047,-692.83,0.00016,2]
[408791880,1774277449058,-250.0,0.00016,2]
[408791882,1774277449068,-3464.08,0.00016,2]
[408791884,1774277449078,-151.0,0.00016,2]
[408791886,1774277449088,-151.0,0.00016,2]
[408791888,1774277449098,-151.0,0.00016,2]
[408791890,1774277449108,-151.0,0.00016,2]
[408791892,1774277449119,-5000.0,0.00016,2]
[408791894,1774277449130,-246.70031231,0.00016,2]
[408791896,1774277449140,-224.40258021,0.00016,2]
[408791898,1774277449150,-150.0,0.00016,2]
[408791900,1774277449161,-181.69910248,0.00016,2]
[408791902,1774277449171,-150.0,0.00016,2]
[408791904,1774277449181,-150.0,0.00016,2]
[408791906,1774277449190,-150.0,0.00016,2]
[408791908,1774277449200,-587.48569977,0.00016,2]
[408791910,1774277449209,-299.63728423,0.00016,2]
[408791912,1774277449220,-150.0,0.00016,2]
[408791914,1774277449232,-150.0,0.00016,2]
[408791916,1774277449242,-150.53323122,0.00016,2]
[408791918,1774277449253,-150.0,0.00016,2]
[408791920,1774277449263,-150.0,0.00016,2]
[408791922,1774277449272,-150.0,0.00016,2]
[408791924,1774277449281,-226.32185808,0.00016,2]
[408791926,1774277449291,-150.0,0.00016016,2]
[408791928,1774277449300,-196.0,0.00016044,2]
[408791930,1774277449309,-168.0,0.00016087,2]
[408791932,1774277449320,-8042.13,0.00016116,2]
[408791934,1774277449329,-599.60298507,0.00016137,2]
[408791936,1774277449339,-246.70031231,0.00016162,2]
[408791938,1774277449348,-224.40258021,0.00016162,2]
[408791940,1774277449357,-181.69910248,0.00016162,2]
[408791942,1774277449367,-587.48569977,0.00016162,2]
[408791944,1774277449377,-299.63728423,0.00016162,2]
[408791946,1774277449387,-150.53323122,0.00016162,2]
[408791948,1774277449396,-226.32185808,0.00016162,2]
[408791950,1774277449406,-5000.00432748,0.000162,5]
[408791952,1774277449415,-1148.68140845,0.000162,2]
[408791954,1774277449425,-500.0,0.00016245,2]
[408791956,1774277449435,-150.0,0.00016254,2]
[408791958,1774277449444,-168.0,0.00016262,2]
[408791960,1774277449454,-150.0,0.00016267,2]
[408791962,1774277449464,-2543.08,0.00016275,2]
[408791964,1774277449474,-4635.57,0.00016275,2]
[408791966,1774277449484,-867.7,0.00016275,2]
[408791968,1774277449494,-2458.96,0.00016275,2]
[408791970,1774277449505,-2450.48,0.00016275,2]
[408791972,1774277449519,-1648.48,0.00016282,2]
[408791974,1774277449528,-500.0,0.000163,2]
[408791976,1774277449538,-151.0474,0.000163,2]
[408791978,1774277449547,-2000.0,0.000163,2]
[408791980,1774277449558,-200.0,0.00016309,2]
[408791982,1774277449569,-200.0,0.00016309,2]
[408791984,1774277449578,-200.0,0.00016309,2]
[408791986,1774277449587,-200.0,0.00016309,2]
[408791988,1774277449597,-246.70031231,0.00016323,2]
[408791990,1774277449607,-224.40258021,0.00016323,2]
[408791992,1774277449617,-181.69910248,0.00016323,2]
[408791994,1774277449626,-587.48569977,0.00016323,2]
[408791996,1774277449635,-299.63728423,0.00016323,2]
[408791998,1774277449644,-150.53323122,0.00016323,2]
[408792000,1774277449653,-226.32185808,0.00016323,2]
[408792002,1774277449663,-200.0,0.0001634,2]
[408792004,1774277449672,-168.0,0.00016354,2]
[408792006,1774277449682,-152.0,0.00016374,6]
[408792008,1774277449692,-150.0,0.000164,2]
[408792010,1774277449701,-213.0,0.000164,2]
[408792012,1774277449711,-302.46,0.000164,2]
[408792014,1774277449721,-354.62221685,0.000164,2]
[408792016,1774277449731,-2000.0,0.000164,2]
[408792018,1774277449740,-150.0,0.0001641,2]
[408792020,1774277449750,-6862.3,0.00016438,2]
[408792022,1774277449760,-1485.59,0.00016438,2]
[408792024,1774277449771,-1724.1,0.00016438,2]
[408792026,1774277449780,-500.0,0.00016438,2]
[408792028,1774277449790,-500.0,0.00016438,2]
[408792030,1774277449800,-500.0,0.00016438,2]
[408792032,1774277449810,-500.0,0.00016438,2]
[408792034,1774277449819,-500.0,0.00016438,2]
[408792036,1774277449829,-500.0,0.00016438,2]
[408792038,1774277449839,-500.0,0.00016438,2]
[408792040,1774277449849,-500.0,0.00016438,2]
[408792042,1774277449858,-500.0,0.00016438,2]
[408792044,1774277449872,-500.0,0.00016438,2]
[408792046,1774277449882,-500.0,0.00016438,2]
[408792048,1774277449892,-500.0,0.00016438,2]
[408792050,1774277449903,-500.0,0.00016438,2]
[408792052,1774277449912,-500.0,0.00016438,2]
[408792054,1774277449922,-500.0,0.00016438,2]
[408792056,1774277449933,-500.0,0.00016438,2]
[408792058,1774277449943,-500.0,0.00016438,2]
[408792060,1774277449953,-500.0,0.00016438,2]
[408792062,1774277449963,-500.0,0.00016438,2]
[408792064,1774277449973,-500.0,0.00016438,2]
[408792066,1774277449983,-500.0,0.00016438,2]
[408792068,1774277449992,-500.0,0.00016438,2]
[408792070,1774277450003,-500.0,0.00016438,2]
[408792072,1774277450013,-500.0,0.00016438,2]
[408792074,1774277450023,-500.0,0.00016438,2]
[408792076,1774277450033,-500.0,0.00016438,2]
[408792078,1774277450044,-500.0,0.00016438,2]
[408792081,1774277450054,-500.0,0.00016438,2]
[408792083,1774277450067,-500.0,0.00016438,2]
[408792085,1774277450078,-500.0,0.00016438,2]
[408792087,1774277450087,-500.0,0.00016438,2]
[408792089,1774277450097,-500.0,0.00016438,2]
[408792091,1774277450107,-500.0,0.00016438,2]
[408792093,1774277450116,-500.0,0.00016438,2]
[408792095,1774277450126,-500.0,0.00016438,2]
[408792097,1774277450136,-500.0,0.00016438,2]
[408792099,1774277450146,-500.0,0.00016438,2]
[408792101,1774277450155,-500.0,0.00016438,2]
[408792103,1774277450165,-500.0,0.00016438,2]
[408792105,1774277450176,-500.0,0.00016438,2]
[408792107,1774277450186,-500.0,0.00016438,2]
[408792109,1774277450196,-500.0,0.00016438,2]
[408792111,1774277450207,-500.0,0.00016438,2]
[408792113,1774277450216,-500.0,0.00016438,2]
[408792115,1774277450226,-500.0,0.00016438,2]
[408792117,1774277450236,-500.0,0.00016438,2]
[408792119,1774277450246,-500.0,0.00016438,2]
[408792121,1774277450259,-500.0,0.00016438,2]
[408792123,1774277450270,-500.0,0.00016438,2]
[408792125,1774277450280,-500.0,0.00016438,2]
[408792127,1774277450290,-500.0,0.00016438,2]
[408792129,1774277450300,-500.0,0.00016438,2]
[408792131,1774277450310,-500.0,0.00016438,2]
[408792133,1774277450320,-500.0,0.00016438,2]
[408792135,1774277450330,-500.0,0.00016438,2]
[408792137,1774277450340,-500.0,0.00016438,2]
[408792140,1774277450350,-354.51213463,0.00016438,2]
[408792142,1774277450360,-1170.0,0.00016438,2]
[408792144,1774277450370,-1170.0,0.00016438,2]
[408792146,1774277450380,-1170.0,0.00016438,2]
[408792148,1774277450390,-1170.0,0.00016438,2]
[408792150,1774277450399,-1170.0,0.00016438,2]
[408792152,1774277450409,-1170.0,0.00016438,2]
[408792154,1774277450418,-1170.0,0.00016438,2]
[408792156,1774277450428,-1170.0,0.00016438,2]
[408792157,1774277450438,-1170.0,0.00016438,2]
[408792160,1774277450448,-1170.0,0.00016438,2]
[408792162,1774277450457,-1170.0,0.00016438,2]
[408792163,1774277450467,-1170.0,0.00016438,2]
[408792166,1774277450477,-1170.0,0.00016438,2]
[408792167,1774277450487,-1170.0,0.00016438,2]
[408792169,1774277450496,-1170.0,0.00016438,2]
[408792172,1774277450508,-1170.0,0.00016438,2]
[408792174,1774277450521,-1170.0,0.00016438,2]
[408792175,1774277450531,-1170.0,0.00016438,2]
[408792178,1774277450541,-1170.0,0.00016438,2]
[408792180,1774277450553,-1170.0,0.00016438,2]
[408792182,1774277450563,-1170.0,0.00016438,2]
[408792184,1774277450573,-1170.0,0.00016438,2]
[408792186,1774277450586,-1170.0,0.00016438,2]
[408792188,1774277450596,-1170.418249,0.00016438,2]
[408792190,1774277450606,-794.74,0.00016438,2]
[408792192,1774277450615,-357.56,0.00016438,2]
[408792194,1774277450625,-151.0,0.00016438,2]
[408792196,1774277450634,-151.0,0.00016438,2]
[408792199,1774277450660,-151.0,0.00016438,2]
[408792202,1774277450671,-151.0,0.00016438,2]
[408792204,1774277450681,-151.0,0.00016438,2]
[408792206,1774277450691,-151.0,0.00016438,2]
[408792208,1774277450701,-289.97537,0.00016438,2]
[408792210,1774277450711,-151.0,0.00016438,2]
[408792212,1774277450721,-151.0,0.00016438,2]
[408792214,1774277450731,-151.0,0.00016438,2]
[408792216,1774277450741,-151.0,0.00016438,2]
[408792218,1774277450751,-151.0,0.00016438,2]
[408792220,1774277450762,-158.524631,0.00016438,2]
[408792222,1774277450772,-151.0,0.00016438,2]
[408792224,1774277450782,-151.0,0.00016438,2]
[408792226,1774277450793,-151.0,0.00016438,2]
[408792228,1774277450803,-151.0,0.00016438,2]
[408792230,1774277450813,-151.0,0.00016438,2]
[408792232,1774277450823,-151.0,0.00016438,2]
[408792234,1774277450833,-151.0,0.00016438,2]
[408792236,1774277450843,-151.0,0.00016438,2]
[408792238,1774277450854,-151.0,0.00016438,2]
[408792240,1774277450864,-151.0,0.00016438,2]
[408792242,1774277450873,-151.0,0.00016438,2]
[408792244,1774277450883,-151.0,0.00016438,2]
[408792246,1774277450893,-151.0,0.00016438,2]
[408792248,1774277450903,-151.0,0.00016438,2]
[408792250,1774277450913,-228.87,0.00016438,2]
[408792252,1774277450922,-151.0,0.00016438,2]
[408792254,1774277450932,-151.0,0.00016438,2]
[408792256,1774277450942,-151.0,0.00016438,2]
[408792258,1774277450952,-151.0,0.00016438,2]
[408792260,1774277450962,-151.0,0.00016438,2]
[408792262,1774277450971,-151.0,0.00016438,2]
[408792264,1774277450981,-151.0,0.00016438,2]
[408792267,1774277450999,-151.0,0.00016438,2]
[408792269,1774277451011,-301.93223741,0.00016438,2]
[408792271,1774277451020,-300.0,0.00016438,3]
[408792273,1774277451031,-551.327684,0.00016438,2]
[408792275,1774277451042,-300.0,0.00016438,3]
[408792277,1774277451053,-551.327684,0.00016438,2]
[408792279,1774277451063,-300.0,0.00016438,3]
[408792281,1774277451073,-551.327684,0.00016438,2]
[408792283,1774277451083,-551.327684,0.00016438,2]
[408792285,1774277451095,-551.327684,0.00016438,2]
[408792287,1774277451106,-551.327684,0.00016438,2]
[408792289,1774277451116,-551.327684,0.00016438,2]
[408792291,1774277451126,-551.327684,0.00016438,2]
[408792293,1774277451136,-551.327684,0.00016438,2]
[408792295,1774277451147,-551.327684,0.00016438,2]
[408792297,1774277451157,-551.327684,0.00016438,2]
[408792299,1774277451167,-551.327684,0.00016438,2]
[408792301,1774277451177,-551.327684,0.00016438,2]
[408792303,1774277451186,-551.327684,0.00016438,2]
[408792305,1774277451196,-551.327684,0.00016438,2]
[408792307,1774277451206,-551.327684,0.00016438,2]
[408792309,1774277451216,-551.327684,0.00016438,2]
[408792311,1774277451227,-551.327684,0.00016438,2]
[408792313,1774277451238,-551.327684,0.00016438,2]
[408792315,1774277451247,-551.327676,0.00016438,2]
[408792317,1774277451258,-300.0,0.00016438,3]
[408792319,1774277451269,-300.0,0.00016438,3]
[408792321,1774277451279,-152.54,0.00016438,2]
[408792324,1774277451291,-152.0,0.00016438,2]
[408792326,1774277451301,-152.0,0.00016438,2]
[408792328,1774277451312,-182.84119736,0.00016438,2]
[408792330,1774277451322,-246.70031231,0.00016485,2]
[408792332,1774277451332,-224.40258021,0.00016485,2]
[408792334,1774277451342,-181.69910248,0.00016485,2]
[408792336,1774277451359,-587.48569977,0.00016485,2]
[408792339,1774277451369,-299.63728423,0.00016485,2]
[408792341,1774277451379,-150.53323122,0.00016485,2]
[408792343,1774277451390,-226.32185808,0.00016485,2]
[408792345,1774277451400,-2000.0,0.000165,2]
[408792347,1774277451410,-150.0,0.00016508,2]
[408792349,1774277451420,-150.0,0.00016533,2]
[408792351,1774277451430,-502.0,0.00016571,4]
[408792353,1774277451441,-363.14561023,0.000166,2]
[408792355,1774277451452,-1000.0,0.000166,2]
[408792357,1774277451462,-2000.0,0.000166,2]
[408792359,1774277451473,-434.04014354,0.00016604,2]
[408792361,1774277451483,-500.0,0.00016633,2]
[408792363,1774277451494,-500.0,0.00016633,2]
[408792365,1774277451506,-246.70031231,0.00016646,2]
[408792367,1774277451522,-224.40258021,0.00016646,2]
[408792369,1774277451535,-181.69910248,0.00016646,2]
[408792371,1774277451546,-587.48569977,0.00016646,2]
[408792373,1774277451557,-299.63728423,0.00016646,2]
[408792375,1774277451578,-150.53323122,0.00016646,2]
[408792377,1774277451599,-226.32185808,0.00016646,2]
[408792379,1774277451611,-168.0,0.00016669,2]
[408792381,1774277451622,-1648.48,0.0001667,2]
[408792384,1774277451633,-2000.0,0.000167,2]
[408792386,1774277451644,-1724.1,0.00016712,2]
[408792388,1774277451655,-200.19,0.00016712,2]
[408792390,1774277451666,-150.0,0.00016762,2]
[408792392,1774277451676,-1048.77559527,0.00016794,2]
[408792394,1774277451687,-150.0,0.000168,2]
[408792396,1774277451698,-2000.0,0.000168,2]
[408792398,1774277451709,-246.70031231,0.00016808,2]
[408792400,1774277451719,-224.40258021,0.00016808,2]
[408792402,1774277451730,-181.69910248,0.00016808,2]
[408792405,1774277451745,-587.48569977,0.00016808,2]
[408792407,1774277451755,-299.63728423,0.00016808,2]
[408792409,1774277451768,-150.53323122,0.00016808,2]
[408792411,1774277451778,-226.32185808,0.00016808,2]
[408792413,1774277451789,-150.0,0.0001682,2]
[408792415,1774277451799,-800.0,0.00016822,2]
[408792417,1774277451810,-700.0,0.00016822,7]
[408792420,1774277451821,-150.0,0.0001683,7]
[408792422,1774277451831,-4609.0,0.00016846,2]
[408792424,1774277451842,-152.6045041,0.00016849,2]
[408792426,1774277451852,-351.38211106,0.00016872,2]
[408792428,1774277451863,-300.0,0.00016872,2]
[408792430,1774277451873,-1345.0,0.00016873,2]
[408792432,1774277451883,-3515.0,0.00016873,2]
[408792434,1774277451893,-621.0,0.00016873,2]
[408792436,1774277451904,-1044.0,0.00016873,2]
[408792438,1774277451915,-1261.0,0.00016873,2]
[408792440,1774277451925,-415.0,0.00016873,2]
[408792441,1774277451936,-3761.0,0.00016873,2]
[408792442,1774277451946,-300.0,0.00016899,2]
[408792443,1774277451957,-300.0,0.00016899,2]
[408792444,1774277451967,-300.0,0.00016899,2]
[408792445,1774277451977,-300.0,0.00016899,2]
[408792446,1774277451988,-300.0,0.00016899,2]
[408792447,1774277451998,-300.0,0.00016899,2]
[408792448,1774277452010,-300.0,0.00016899,2]
[408792449,1774277452021,-300.0,0.00016899,2]
[408792450,1774277452031,-300.0,0.00016899,2]
[408792451,1774277452041,-300.0,0.00016899,2]
[408792452,1774277452052,-1300.0,0.000169,6]
[408792453,1774277452062,-100000.0,0.000169,2]
[408792454,1774277452072,-466.13,0.000169,2]
[408792455,1774277452082,-290.0,0.000169,2]
[408792456,1774277452092,-2000.0,0.000169,2]
[408792458,1774277452106,-168.0,0.00016932,2]
[408792460,1774277452116,-350.0,0.00016965,3]
[408792462,1774277452127,-246.70031231,0.0001697,2]
[408792464,1774277452137,-224.40258021,0.0001697,2]
[408792467,1774277452148,-181.69910248,0.0001697,2]
[408792468,1774277452158,-587.48569977,0.0001697,2]
[408792470,1774277452169,-299.63728423,0.0001697,2]
[408792473,1774277452179,-150.53323122,0.0001697,2]
[408792475,1774277452190,-226.32185808,0.0001697,2]
[408792477,1774277452200,-400.0,0.0001697,2]
[408792479,1774277452210,-1568.0,0.0001697,2]
[408792481,1774277452220,-1724.1,0.00016986,2]
[408792483,1774277452231,-499.02938322,0.00016998,2]
[408792485,1774277452241,-300.0,0.00016999,2]
[408792487,1774277452252,-300.0,0.00016999,2]
[408792489,1774277452263,-300.0,0.00016999,2]
[408792491,1774277452272,-300.0,0.00016999,2]
[408792493,1774277452282,-300.0,0.00016999,2]
[408792495,1774277452292,-300.0,0.00016999,2]
[408792497,1774277452306,-300.0,0.00016999,2]
[408792499,1774277452316,-300.0,0.00016999,2]
[408792501,1774277452327,-150.0,0.00017,2]
[408792504,1774277452337,-250.0,0.00017,2]
[408792506,1774277452347,-200.0,0.00017,2]
[408792508,1774277452358,-254795.33750834,0.00017,2]
[408792510,1774277452368,-2601.76722382,0.00017,2]
[408792512,1774277452378,-31544.73831669,0.00017,2]
[408792514,1774277452388,-175.05,0.00017,2]
[408792516,1774277452398,-200.0,0.00017,2]
[408792518,1774277452408,-200.0,0.00017,2]
[408792520,1774277452419,-500.0,0.00017,2]
[408792522,1774277452428,-173.3901,0.00017,2]
[408792524,1774277452438,-173.3901,0.00017,2]
[408792526,1774277452449,-173.3901,0.00017,2]
[408792528,1774277452459,-173.3901,0.00017,2]
[408792531,1774277452469,-173.3901,0.00017,2]
[408792533,1774277452479,-173.3901,0.00017,2]
[408792535,1774277452491,-219.59747524,0.00017,2]
[408792537,1774277452501,-397.0,0.00017,2]
[408792539,1774277452515,-196.55118957,0.00017,2]
[408792541,1774277452526,-159.70218076,0.00017,2]
[408792543,1774277452536,-185.80653218,0.00017,2]
[408792545,1774277452547,-213.0,0.00017,2]
[408792547,1774277452558,-1000.0,0.00017,2]
[408792549,1774277452567,-316.77233318,0.00017,2]
[408792551,1774277452577,-158.38616658,0.00017,2]
[408792553,1774277452588,-395.0,0.00017,2]
[408792555,1774277452598,-350.0,0.00017,2]
[408792557,1774277452608,-524.69,0.00017,2]
[408792559,1774277452620,-560.21,0.00017,2]
[408792562,1774277452630,-712.55,0.00017,2]
[408792564,1774277452640,-692.83,0.00017,2]
[408792566,1774277452650,-150.07341902,0.00017,2]
[408792568,1774277452660,-300.0,0.00017014,2]
[408792570,1774277452670,-300.0,0.00017014,2]
[408792572,1774277452680,-168.0,0.00017015,2]
[408792574,1774277452691,-150.0,0.00017016,2]
[408792576,1774277452701,-195.0,0.00017023,2]
[408792578,1774277452711,-1648.48,0.00017058,2]
[408792580,1774277452721,-150.0,0.00017066,2]
[408792582,1774277452732,-152.0,0.00017069,7]
[408792584,1774277452742,-1000.0,0.00017096,7]
[408792586,1774277452752,-3464.08,0.000171,2]
[408792588,1774277452763,-246.70031231,0.00017131,2]
[408792590,1774277452774,-224.40258021,0.00017131,2]
[408792592,1774277452784,-181.69910248,0.00017131,2]
[408792594,1774277452794,-587.48569977,0.00017131,2]
[408792596,1774277452804,-299.63728423,0.00017131,2]
[408792598,1774277452815,-150.53323122,0.00017131,2]
[408792600,1774277452825,-226.32185808,0.00017131,2]
[408792603,1774277452836,-150.0,0.00017231,2]
[408792605,1774277452847,-1724.1,0.0001726,2]
[408792607,1774277452857,-730.0,0.00017263,2]
[408792609,1774277452868,-585.0,0.00017263,2]
[408792612,1774277452890,-150.0,0.0001727,2]
[408792614,1774277452902,-246.70031231,0.00017293,2]
[408792616,1774277452912,-224.40258021,0.00017293,2]
[408792618,1774277452922,-181.69910248,0.00017293,2]
[408792620,1774277452932,-587.48569977,0.00017293,2]
[408792622,1774277452943,-299.63728423,0.00017293,2]
[408792625,1774277452954,-150.53323122,0.00017293,2]
[408792627,1774277452964,-226.32185808,0.00017293,2]
[408792629,1774277452974,-150.0,0.00017333,2]
[408792631,1774277452984,-5000.0,0.00017376,30]
[408792633,1774277452994,-168.0,0.00017384,2]
[408792635,1774277453004,-502.0,0.00017429,5]
[408792637,1774277453015,-246.70031231,0.00017454,2]
[408792639,1774277453028,-224.40258021,0.00017454,2]
[408792641,1774277453039,-181.69910248,0.00017454,2]
[408792643,1774277453050,-587.48569977,0.00017454,2]
[408792645,1774277453060,-299.63728423,0.00017454,2]
[408792648,1774277453071,-150.53323122,0.00017454,2]
[408792650,1774277453082,-226.32185808,0.00017454,2]
[408792652,1774277453093,-170.0,0.000175,7]
[408792654,1774277453104,-221.26,0.0001751,2]
[408792656,1774277453114,-186.15,0.0001751,2]
[408792658,1774277453125,-180.69,0.0001751,2]
[408792661,1774277453138,-331.89,0.0001751,2]
[408792663,1774277453148,-230.29,0.0001751,2]
[408792740,1774277453886,-230.29,0.0001751,2]
[408792742,1774277453897,-221.08,0.0001751,2]
[408792744,1774277453907,-264.52,0.0001751,2]
[408792746,1774277453916,-229.29,0.0001751,2]
[408792748,1774277453926,-244.1,0.0001751,2]
[408792750,1774277453937,-244.1,0.0001751,2]
[408792752,1774277453947,-1029.34,0.0001751,2]
[408792754,1774277453958,-1152.0,0.0001752,2]
[408792757,1774277453968,-150.0,0.00017524,2]
[408792759,1774277453978,-1724.1,0.00017534,2]
[408792761,1774277453989,-150.0,0.000176,2]
[408792763,1774277453999,-150.0,0.000176,2]
[408792765,1774277454011,-325.3,0.00017608,2]
[408792767,1774277454021,-246.70031231,0.00017616,2]
[408792769,1774277454031,-224.40258021,0.00017616,2]
[408792771,1774277454042,-181.69910248,0.00017616,2]
[408792773,1774277454053,-587.48569977,0.00017616,2]
[408792775,1774277454064,-299.63728423,0.00017616,2]
[408792777,1774277454074,-150.53323122,0.00017616,2]
[408792779,1774277454085,-226.32185808,0.00017616,2]